Workbook

Sheet Mfgr
D2: CyclePX | E2: 1 | F2: 0 | G2: 0 | H2: 0 | I2: 0
D3: CyclePY | E3: 0 | F3: 0 | G3: 0 | H3: 0 | I3: 0
D4: CycleX | E4: 2 | F4: 1 | G4: 1 | H4: 2 | I4: 1
D5: CycleY | E5: 2 | F5: 1 | G5: 2 | H5: 1 | I5: 2
L6: Random Variables
E7: Jan | F7: Feb | G7: Mar | H7: Apr | I7: May
D8: DemX | E8: 749 | F8: 548 | G8: 477 | H8: 740 | I8: 421 | L8: =RANDBETWEEN(400,800) -> 554 | M8: =RANDBETWEEN(400,800) -> 585 | N8: 423 | O8: 472 | P8: 402
D9: DemY | E9: 653 | F9: 503 | G9: 606 | H9: 485 | I9: 559 | L9: =RANDBETWEEN(400,800) -> 724 | M9: 544 | N9: 607 | O9: 689 | P9: 543
D10: ProdX | E10: =MIN(CycleX*PrBatch,CapX) -> 574 | F10: =MIN(CycleX*PrBatch,CapX) -> 477 | G10: =MIN(CycleX*PrBatch,CapX) -> 477 | H10: =MIN(CycleX*PrBatch,CapX) -> 574 | I10: =MIN(CycleX*PrBatch,CapX) -> 477
D11: ProdY | E11: =MIN(CycleY*PrBatch,CapY) -> 576 | F11: =MIN(CycleY*PrBatch,CapY) -> 477 | G11: =MIN(CycleY*PrBatch,CapY) -> 576 | H11: =MIN(CycleY*PrBatch,CapY) -> 477 | I11: =MIN(CycleY*PrBatch,CapY) -> 576
D12: PurX | E12: =CyclePX*PurBatch -> 290 | F12: =CyclePX*PurBatch -> 0 | G12: =CyclePX*PurBatch -> 0 | H12: =CyclePX*PurBatch -> 0 | I12: =CyclePX*PurBatch -> 0
D13: PurY | E13: =CyclePY*PurBatch -> 0 | F13: =CyclePY*PurBatch -> 0 | G13: =CyclePY*PurBatch -> 0 | H13: =CyclePY*PurBatch -> 0 | I13: =CyclePY*PurBatch -> 0
A14: InvXi | B14: 400 | D14: InvX | E14: =InvXi+ProdX+PurX-DemX -> 515 | F14: =INDEX(InvX,coln-1)+ProdX+PurX-DemX -> 444 | G14: =INDEX(InvX,coln-1)+ProdX+PurX-DemX -> 444 | H14: =INDEX(InvX,coln-1)+ProdX+PurX-DemX -> 278 | I14: =INDEX(InvX,coln-1)+ProdX+PurX-DemX -> 334
A15: InvYi | B15: 400 | D15: InvY | E15: =InvYi+ProdY+PurY-DemY -> 323 | F15: =INDEX(InvY,coln-1)+ProdY+PurY-DemY -> 297 | G15: =INDEX(InvY,coln-1)+ProdY+PurY-DemY -> 267 | H15: =INDEX(InvY,coln-1)+ProdY+PurY-DemY -> 259 | I15: =INDEX(InvY,coln-1)+ProdY+PurY-DemY -> 276
D19: CheckX | E19: =InvXi-DemX+ProdX+PurX-InvX -> 0 | F19: =INDEX(InvX,coln-1)-DemX+ProdX+PurX-InvX -> 0 | G19: =INDEX(InvX,coln-1)-DemX+ProdX+PurX-InvX -> 0 | H19: =INDEX(InvX,coln-1)-DemX+ProdX+PurX-InvX -> 0 | I19: =INDEX(InvX,coln-1)-DemX+ProdX+PurX-InvX -> 0
D20: CheckY | E20: =InvYi-DemY+ProdY+PurY-InvY -> 0 | F20: =INDEX(InvY,coln-1)-DemY+ProdY+PurY-InvY -> 0 | G20: =INDEX(InvY,coln-1)-DemY+ProdY+PurY-InvY -> 0 | H20: =INDEX(InvY,coln-1)-DemY+ProdY+PurY-InvY -> 0 | I20: =INDEX(InvY,coln-1)-DemY+ProdY+PurY-InvY -> 0
A21: InvMinX | B21: 277 | D21: CapX | E21: =CapcX -> 574 | F21: =CapcX -> 574 | G21: =CapcX -> 574 | H21: =CapcX -> 574 | I21: =CapcX -> 574 | L21: InvMinXRnd | M21: =RANDBETWEEN(250,300) -> 291
A22: InvMinY | B22: 254 | D22: CapY | E22: =CapcY -> 576 | F22: =CapcY -> 576 | G22: =CapcY -> 576 | H22: =CapcY -> 576 | I22: =CapcY -> 576 | L22: InvMinYRnd | M22: =RANDBETWEEN(250,300) -> 258
A23: CapcX | B23: 574 | D23: InvXmin | E23: =InvMinX -> 277 | F23: =InvMinX -> 277 | G23: =InvMinX -> 277 | H23: =InvMinX -> 277 | I23: =InvMinX -> 277 | L23: CapcXRnd | M23: =RANDBETWEEN(550,600) -> 595
A24: CapcY | B24: 576 | D24: InvYmin | E24: =InvMinY -> 254 | F24: =InvMinY -> 254 | G24: =InvMinY -> 254 | H24: =InvMinY -> 254 | I24: =InvMinY -> 254 | L24: CapcYRnd | M24: =RANDBETWEEN(550,600) -> 578
A25: PrBatch | B25: 477 | D25: ProdXY | E25: =ProdX+ProdY -> 1150 | F25: =ProdX+ProdY -> 954 | G25: =ProdX+ProdY-PurX-PurY -> 1053 | H25: =ProdX+ProdY -> 1051 | I25: =ProdX+ProdY -> 1053 | L25: PrBatchRnd | M25: =RANDBETWEEN(300,600) -> 326
A26: PurBatch | B26: 290 | D26: IdlePdn | E26: =CapX+CapY-(ProdX+ProdY) -> 0 | F26: =CapX+CapY-(ProdX+ProdY) -> 196 | G26: =CapX+CapY-(ProdX+ProdY) -> 97 | H26: =CapX+CapY-(ProdX+ProdY) -> 99 | I26: =CapX+CapY-(ProdX+ProdY) -> 97 | L26: PurBatchRnd | M26: =RANDBETWEEN(250,300) -> 300
A36: Idle | B36: 0.8 | L36: Idle | M36: 0.8 | O36: =RANDBETWEEN(6,8)/10 -> 0.7
A37: Inv | B37: 0.118 | L37: Inv | M37: 0.118 | O37: =RANDBETWEEN(80,120)/1000 -> 0.115
A38: Prod | B38: 1.6 | L38: Prod | M38: 1.6 | O38: =RANDBETWEEN(14,16)/10 -> 1.6
A39: Pur | B39: 2.5 | L39: Pur | M39: 2.5 | O39: =RANDBETWEEN(20,30)/10 -> 2.5
A40: Sale | B40: 2.9 | L40: Sale | M40: 2.9 | O40: =RANDBETWEEN(28,32)/10 -> 2.8
A43: TotCost | B43: =SUM(invArr)*Inv+SUM(ProdArr)*Prod+SUM(PurArr)*Pur+SUM(IdlePdn)*Idle -> 9939.366
A44: TotSales | B44: =SUM(DemArr)*Sale -> 16648.9
A45: Profit | B45: =TotSales-TotCost -> 6709.534

Sheet Regres
B3: Table3
B4: InvMinX | C4: InvMinY | D4: CapcX | E4: CapcY | F4: PrBatch | G4: PurBatch | H4: Idle | I4: Inv | J4: Prod | K4: Pur | L4: Sale | M4: Profit
B5: 280 | C5: 270 | D5: 555 | E5: 564 | F5: 569 | G5: 263 | H5: 0.8 | I5: 0.118 | J5: 1.6 | K5: 2.5 | L5: 2.9 | M5: 6350.732
B6: 273 | C6: 277 | D6: 585 | E6: 578 | F6: 375 | G6: 263 | H6: 0.8 | I6: 0.118 | J6: 1.6 | K6: 2.5 | L6: 2.9 | M6: 6524.418
B7: 285 | C7: 279 | D7: 579 | E7: 595 | F7: 433 | G7: 298 | H7: 0.8 | I7: 0.118 | J7: 1.6 | K7: 2.5 | L7: 2.9 | M7: 6830.876
B8: 255 | C8: 284 | D8: 561 | E8: 580 | F8: 524 | G8: 250 | H8: 0.8 | I8: 0.118 | J8: 1.6 | K8: 2.5 | L8: 2.9 | M8: 5982.414
B9: 254 | C9: 294 | D9: 595 | E9: 580 | F9: 395 | G9: 298 | H9: 0.8 | I9: 0.118 | J9: 1.6 | K9: 2.5 | L9: 2.9 | M9: 6795.26
B10: 285 | C10: 256 | D10: 594 | E10: 576 | F10: 370 | G10: 279 | H10: 0.8 | I10: 0.118 | J10: 1.6 | K10: 2.5 | L10: 2.9 | M10: 6568.4
B11: 257 | C11: 300 | D11: 573 | E11: 583 | F11: 379 | G11: 254 | H11: 0.8 | I11: 0.118 | J11: 1.6 | K11: 2.5 | L11: 2.9 | M11: 6570.946
B12: 262 | C12: 250 | D12: 552 | E12: 571 | F12: 527 | G12: 270 | H12: 0.8 | I12: 0.118 | J12: 1.6 | K12: 2.5 | L12: 2.9 | M12: 7176.596
B13: 253 | C13: 265 | D13: 568 | E13: 553 | F13: 393 | G13: 295 | H13: 0.8 | I13: 0.118 | J13: 1.6 | K13: 2.5 | L13: 2.9 | M13: 6039.738
B14: 253 | C14: 298 | D14: 586 | E14: 578 | F14: 306 | G14: 277 | H14: 0.8 | I14: 0.118 | J14: 1.6 | K14: 2.5 | L14: 2.9 | M14: 6349.202
B15: 261 | C15: 298 | D15: 575 | E15: 575 | F15: 386 | G15: 278 | H15: 0.8 | I15: 0.118 | J15: 1.6 | K15: 2.5 | L15: 2.9 | M15: 5693.648
B16: 282 | C16: 297 | D16: 565 | E16: 593 | F16: 382 | G16: 283 | H16: 0.8 | I16: 0.118 | J16: 1.6 | K16: 2.5 | L16: 2.9 | M16: 6416.2
B17: 263 | C17: 282 | D17: 592 | E17: 554 | F17: 441 | G17: 262 | H17: 0.8 | I17: 0.118 | J17: 1.6 | K17: 2.5 | L17: 2.9 | M17: 6732.37
B18: 277 | C18: 298 | D18: 584 | E18: 550 | F18: 315 | G18: 274 | H18: 0.8 | I18: 0.118 | J18: 1.6 | K18: 2.5 | L18: 2.9 | M18: 6425.976
B19: 292 | C19: 274 | D19: 555 | E19: 566 | F19: 327 | G19: 282 | H19: 0.8 | I19: 0.118 | J19: 1.6 | K19: 2.5 | L19: 2.9 | M19: 6400.524
B20: 254 | C20: 279 | D20: 578 | E20: 567 | F20: 355 | G20: 291 | H20: 0.8 | I20: 0.118 | J20: 1.6 | K20: 2.5 | L20: 2.9 | M20: 5799.71
B21: 255 | C21: 271 | D21: 591 | E21: 590 | F21: 528 | G21: 297 | H21: 0.8 | I21: 0.118 | J21: 1.6 | K21: 2.5 | L21: 2.9 | M21: 6685.742
B22: 274 | C22: 291 | D22: 556 | E22: 577 | F22: 453 | G22: 283 | H22: 0.8 | I22: 0.118 | J22: 1.6 | K22: 2.5 | L22: 2.9 | M22: 6627.342
B23: 257 | C23: 260 | D23: 588 | E23: 600 | F23: 499 | G23: 263 | H23: 0.8 | I23: 0.118 | J23: 1.6 | K23: 2.5 | L23: 2.9 | M23: 6260.584
B24: 256 | C24: 295 | D24: 592 | E24: 596 | F24: 362 | G24: 287 | H24: 0.8 | I24: 0.118 | J24: 1.6 | K24: 2.5 | L24: 2.9 | M24: 4767.38
B25: 297 | C25: 251 | D25: 558 | E25: 581 | F25: 565 | G25: 277 | H25: 0.8 | I25: 0.118 | J25: 1.6 | K25: 2.5 | L25: 2.9 | M25: 5963.172
B26: 265 | C26: 285 | D26: 598 | E26: 561 | F26: 509 | G26: 277 | H26: 0.8 | I26: 0.118 | J26: 1.6 | K26: 2.5 | L26: 2.9 | M26: 5997.368
B27: 258 | C27: 274 | D27: 582 | E27: 556 | F27: 597 | G27: 288 | H27: 0.8 | I27: 0.118 | J27: 1.6 | K27: 2.5 | L27: 2.9 | M27: 6412.444
B28: 250 | C28: 288 | D28: 585 | E28: 585 | F28: 403 | G28: 268 | H28: 0.8 | I28: 0.118 | J28: 1.6 | K28: 2.5 | L28: 2.9 | M28: 6827.382
B29: 260 | C29: 256 | D29: 578 | E29: 597 | F29: 596 | G29: 255 | H29: 0.8 | I29: 0.118 | J29: 1.6 | K29: 2.5 | L29: 2.9 | M29: 6249.988
B30: 300 | C30: 282 | D30: 562 | E30: 573 | F30: 484 | G30: 255 | H30: 0.8 | I30: 0.118 | J30: 1.6 | K30: 2.5 | L30: 2.9 | M30: 6662.82
B31: 253 | C31: 275 | D31: 587 | E31: 567 | F31: 387 | G31: 277 | H31: 0.8 | I31: 0.118 | J31: 1.6 | K31: 2.5 | L31: 2.9 | M31: 6512.986
B32: 280 | C32: 290 | D32: 585 | E32: 562 | F32: 499 | G32: 255 | H32: 0.8 | I32: 0.118 | J32: 1.6 | K32: 2.5 | L32: 2.9 | M32: 5712.782
B33: 269 | C33: 290 | D33: 555 | E33: 585 | F33: 390 | G33: 272 | H33: 0.8 | I33: 0.118 | J33: 1.6 | K33: 2.5 | L33: 2.9 | M33: 5623.876
B34: 253 | C34: 261 | D34: 581 | E34: 575 | F34: 481 | G34: 278 | H34: 0.8 | I34: 0.118 | J34: 1.6 | K34: 2.5 | L34: 2.9 | M34: 7165.022
B35: 295 | C35: 267 | D35: 558 | E35: 562 | F35: 463 | G35: 282 | H35: 0.8 | I35: 0.118 | J35: 1.6 | K35: 2.5 | L35: 2.9 | M35: 6091.3
B36: 276 | C36: 269 | D36: 555 | E36: 574 | F36: 560 | G36: 290 | H36: 0.8 | I36: 0.118 | J36: 1.6 | K36: 2.5 | L36: 2.9 | M36: 6725.652
B37: 274 | C37: 294 | D37: 599 | E37: 580 | F37: 378 | G37: 264 | H37: 0.8 | I37: 0.118 | J37: 1.6 | K37: 2.5 | L37: 2.9 | M37: 7310.422
B38: 293 | C38: 266 | D38: 594 | E38: 580 | F38: 370 | G38: 291 | H38: 0.8 | I38: 0.118 | J38: 1.6 | K38: 2.5 | L38: 2.9 | M38: 5817.052
B39: 293 | C39: 279 | D39: 575 | E39: 566 | F39: 344 | G39: 259 | H39: 0.8 | I39: 0.118 | J39: 1.6 | K39: 2.5 | L39: 2.9 | M39: 6029.822
B40: 300 | C40: 283 | D40: 576 | E40: 557 | F40: 488 | G40: 279 | H40: 0.8 | I40: 0.118 | J40: 1.6 | K40: 2.5 | L40: 2.9 | M40: 6419.6
B41: 270 | C41: 291 | D41: 579 | E41: 553 | F41: 590 | G41: 291 | H41: 0.8 | I41: 0.118 | J41: 1.6 | K41: 2.5 | L41: 2.9 | M41: 6503.154
B42: 284 | C42: 296 | D42: 595 | E42: 558 | F42: 585 | G42: 260 | H42: 0.8 | I42: 0.118 | J42: 1.6 | K42: 2.5 | L42: 2.9 | M42: 6735.01
B43: 292 | C43: 275 | D43: 590 | E43: 594 | F43: 369 | G43: 271 | H43: 0.8 | I43: 0.118 | J43: 1.6 | K43: 2.5 | L43: 2.9 | M43: 6737.008
B44: 296 | C44: 254 | D44: 581 | E44: 556 | F44: 394 | G44: 261 | H44: 0.8 | I44: 0.118 | J44: 1.6 | K44: 2.5 | L44: 2.9 | M44: 6183.436
B45: 270 | C45: 299 | D45: 599 | E45: 559 | F45: 391 | G45: 260 | H45: 0.8 | I45: 0.118 | J45: 1.6 | K45: 2.5 | L45: 2.9 | M45: 5642.138
B46: 298 | C46: 291 | D46: 579 | E46: 586 | F46: 353 | G46: 263 | H46: 0.8 | I46: 0.118 | J46: 1.6 | K46: 2.5 | L46: 2.9 | M46: 7092.88
B47: 274 | C47: 271 | D47: 578 | E47: 562 | F47: 305 | G47: 287 | H47: 0.8 | I47: 0.118 | J47: 1.6 | K47: 2.5 | L47: 2.9 | M47: 7124.016
B48: 253 | C48: 262 | D48: 568 | E48: 572 | F48: 452 | G48: 293 | H48: 0.8 | I48: 0.118 | J48: 1.6 | K48: 2.5 | L48: 2.9 | M48: 6686.106
B49: 251 | C49: 250 | D49: 599 | E49: 595 | F49: 323 | G49: 266 | H49: 0.8 | I49: 0.118 | J49: 1.6 | K49: 2.5 | L49: 2.9 | M49: 6655.016
B50: 286 | C50: 251 | D50: 588 | E50: 568 | F50: 566 | G50: 290 | H50: 0.8 | I50: 0.118 | J50: 1.6 | K50: 2.5 | L50: 2.9 | M50: 6592.188
B51: 295 | C51: 266 | D51: 562 | E51: 568 | F51: 415 | G51: 272 | H51: 0.8 | I51: 0.118 | J51: 1.6 | K51: 2.5 | L51: 2.9 | M51: 6376.492
B52: 280 | C52: 253 | D52: 587 | E52: 586 | F52: 484 | G52: 283 | H52: 0.8 | I52: 0.118 | J52: 1.6 | K52: 2.5 | L52: 2.9 | M52: 6196.664
B53: 281 | C53: 253 | D53: 575 | E53: 586 | F53: 393 | G53: 254 | H53: 0.8 | I53: 0.118 | J53: 1.6 | K53: 2.5 | L53: 2.9 | M53: 6736.156
B54: 254 | C54: 270 | D54: 567 | E54: 582 | F54: 584 | G54: 250 | H54: 0.8 | I54: 0.118 | J54: 1.6 | K54: 2.5 | L54: 2.9 | M54: 7675.852
B55: 278 | C55: 253 | D55: 550 | E55: 554 | F55: 434 | G55: 295 | H55: 0.8 | I55: 0.118 | J55: 1.6 | K55: 2.5 | L55: 2.9 | M55: 5621.72
B56: 276 | C56: 260 | D56: 581 | E56: 576 | F56: 480 | G56: 270 | H56: 0.8 | I56: 0.118 | J56: 1.6 | K56: 2.5 | L56: 2.9 | M56: 6098.858
B57: 269 | C57: 283 | D57: 566 | E57: 553 | F57: 317 | G57: 250 | H57: 0.8 | I57: 0.118 | J57: 1.6 | K57: 2.5 | L57: 2.9 | M57: 6288.976
B58: 265 | C58: 285 | D58: 575 | E58: 567 | F58: 309 | G58: 274 | H58: 0.8 | I58: 0.118 | J58: 1.6 | K58: 2.5 | L58: 2.9 | M58: 6090.536
B59: 257 | C59: 283 | D59: 600 | E59: 564 | F59: 491 | G59: 297 | H59: 0.8 | I59: 0.118 | J59: 1.6 | K59: 2.5 | L59: 2.9 | M59: 6355.684
B60: 287 | C60: 279 | D60: 587 | E60: 579 | F60: 581 | G60: 253 | H60: 0.8 | I60: 0.118 | J60: 1.6 | K60: 2.5 | L60: 2.9 | M60: 5510.28
B61: 293 | C61: 280 | D61: 562 | E61: 579 | F61: 335 | G61: 297 | H61: 0.8 | I61: 0.118 | J61: 1.6 | K61: 2.5 | L61: 2.9 | M61: 6788.986
B62: 293 | C62: 273 | D62: 575 | E62: 551 | F62: 587 | G62: 279 | H62: 0.8 | I62: 0.118 | J62: 1.6 | K62: 2.5 | L62: 2.9 | M62: 6438.656
B63: 281 | C63: 271 | D63: 579 | E63: 574 | F63: 487 | G63: 296 | H63: 0.8 | I63: 0.118 | J63: 1.6 | K63: 2.5 | L63: 2.9 | M63: 5979.498
B64: 281 | C64: 287 | D64: 592 | E64: 571 | F64: 599 | G64: 298 | H64: 0.8 | I64: 0.118 | J64: 1.6 | K64: 2.5 | L64: 2.9 | M64: 6423.676
B65: 290 | C65: 272 | D65: 559 | E65: 594 | F65: 498 | G65: 273 | H65: 0.8 | I65: 0.118 | J65: 1.6 | K65: 2.5 | L65: 2.9 | M65: 6838.126
B66: 274 | C66: 261 | D66: 598 | E66: 589 | F66: 410 | G66: 267 | H66: 0.8 | I66: 0.118 | J66: 1.6 | K66: 2.5 | L66: 2.9 | M66: 5639.218
B67: 294 | C67: 260 | D67: 596 | E67: 559 | F67: 580 | G67: 298 | H67: 0.8 | I67: 0.118 | J67: 1.6 | K67: 2.5 | L67: 2.9 | M67: 6887.028
B68: 297 | C68: 255 | D68: 591 | E68: 558 | F68: 565 | G68: 260 | H68: 0.8 | I68: 0.118 | J68: 1.6 | K68: 2.5 | L68: 2.9 | M68: 5101.856
B69: 275 | C69: 282 | D69: 554 | E69: 600 | F69: 549 | G69: 272 | H69: 0.8 | I69: 0.118 | J69: 1.6 | K69: 2.5 | L69: 2.9 | M69: 6587.404
B70: 299 | C70: 260 | D70: 558 | E70: 575 | F70: 360 | G70: 266 | H70: 0.8 | I70: 0.118 | J70: 1.6 | K70: 2.5 | L70: 2.9 | M70: 6508.616
B71: 298 | C71: 274 | D71: 594 | E71: 580 | F71: 420 | G71: 259 | H71: 0.8 | I71: 0.118 | J71: 1.6 | K71: 2.5 | L71: 2.9 | M71: 6186.448
B72: 299 | C72: 258 | D72: 583 | E72: 558 | F72: 583 | G72: 266 | H72: 0.8 | I72: 0.118 | J72: 1.6 | K72: 2.5 | L72: 2.9 | M72: 6874.918
B73: 271 | C73: 274 | D73: 588 | E73: 556 | F73: 499 | G73: 277 | H73: 0.8 | I73: 0.118 | J73: 1.6 | K73: 2.5 | L73: 2.9 | M73: 5940.666
B74: 286 | C74: 281 | D74: 572 | E74: 555 | F74: 386 | G74: 267 | H74: 0.8 | I74: 0.118 | J74: 1.6 | K74: 2.5 | L74: 2.9 | M74: 5480.296
B75: 275 | C75: 293 | D75: 586 | E75: 573 | F75: 434 | G75: 300 | H75: 0.8 | I75: 0.118 | J75: 1.6 | K75: 2.5 | L75: 2.9 | M75: 6203.456
B76: 282 | C76: 267 | D76: 593 | E76: 573 | F76: 312 | G76: 252 | H76: 0.8 | I76: 0.118 | J76: 1.6 | K76: 2.5 | L76: 2.9 | M76: 6809.384
B77: 271 | C77: 286 | D77: 582 | E77: 558 | F77: 347 | G77: 293 | H77: 0.8 | I77: 0.118 | J77: 1.6 | K77: 2.5 | L77: 2.9 | M77: 5544.456
B78: 261 | C78: 252 | D78: 597 | E78: 559 | F78: 509 | G78: 271 | H78: 0.8 | I78: 0.118 | J78: 1.6 | K78: 2.5 | L78: 2.9 | M78: 5544.89
B79: 268 | C79: 254 | D79: 588 | E79: 567 | F79: 318 | G79: 252 | H79: 0.8 | I79: 0.118 | J79: 1.6 | K79: 2.5 | L79: 2.9 | M79: 6295.926
B80: 265 | C80: 262 | D80: 585 | E80: 560 | F80: 454 | G80: 282 | H80: 0.8 | I80: 0.118 | J80: 1.6 | K80: 2.5 | L80: 2.9 | M80: 6224.5
B81: 292 | C81: 288 | D81: 555 | E81: 567 | F81: 464 | G81: 285 | H81: 0.8 | I81: 0.118 | J81: 1.6 | K81: 2.5 | L81: 2.9 | M81: 5794.262
B82: 261 | C82: 253 | D82: 595 | E82: 557 | F82: 345 | G82: 264 | H82: 0.8 | I82: 0.118 | J82: 1.6 | K82: 2.5 | L82: 2.9 | M82: 7047.29
B83: 278 | C83: 255 | D83: 586 | E83: 579 | F83: 479 | G83: 250 | H83: 0.8 | I83: 0.118 | J83: 1.6 | K83: 2.5 | L83: 2.9 | M83: 6330.484
B84: 284 | C84: 299 | D84: 598 | E84: 569 | F84: 474 | G84: 270 | H84: 0.8 | I84: 0.118 | J84: 1.6 | K84: 2.5 | L84: 2.9 | M84: 5701.662
B85: 257 | C85: 255 | D85: 559 | E85: 588 | F85: 473 | G85: 262 | H85: 0.8 | I85: 0.118 | J85: 1.6 | K85: 2.5 | L85: 2.9 | M85: 6928.72
B86: 262 | C86: 300 | D86: 593 | E86: 555 | F86: 382 | G86: 261 | H86: 0.8 | I86: 0.118 | J86: 1.6 | K86: 2.5 | L86: 2.9 | M86: 6331.158
B87: 280 | C87: 296 | D87: 567 | E87: 571 | F87: 338 | G87: 251 | H87: 0.8 | I87: 0.118 | J87: 1.6 | K87: 2.5 | L87: 2.9 | M87: 6864.402
B88: 288 | C88: 265 | D88: 587 | E88: 593 | F88: 466 | G88: 257 | H88: 0.8 | I88: 0.118 | J88: 1.6 | K88: 2.5 | L88: 2.9 | M88: 6713.02
B89: 298 | C89: 267 | D89: 594 | E89: 592 | F89: 345 | G89: 290 | H89: 0.8 | I89: 0.118 | J89: 1.6 | K89: 2.5 | L89: 2.9 | M89: 4980.598
B90: 250 | C90: 275 | D90: 565 | E90: 599 | F90: 408 | G90: 257 | H90: 0.8 | I90: 0.118 | J90: 1.6 | K90: 2.5 | L90: 2.9 | M90: 6462.96
B91: 267 | C91: 269 | D91: 592 | E91: 554 | F91: 468 | G91: 284 | H91: 0.8 | I91: 0.118 | J91: 1.6 | K91: 2.5 | L91: 2.9 | M91: 6543.166
B92: 299 | C92: 274 | D92: 588 | E92: 561 | F92: 551 | G92: 260 | H92: 0.8 | I92: 0.118 | J92: 1.6 | K92: 2.5 | L92: 2.9 | M92: 6997.778
B93: 277 | C93: 263 | D93: 580 | E93: 593 | F93: 541 | G93: 286 | H93: 0.8 | I93: 0.118 | J93: 1.6 | K93: 2.5 | L93: 2.9 | M93: 6491.266
B94: 289 | C94: 291 | D94: 573 | E94: 567 | F94: 316 | G94: 292 | H94: 0.8 | I94: 0.118 | J94: 1.6 | K94: 2.5 | L94: 2.9 | M94: 6121.842
B95: 266 | C95: 253 | D95: 588 | E95: 595 | F95: 312 | G95: 289 | H95: 0.8 | I95: 0.118 | J95: 1.6 | K95: 2.5 | L95: 2.9 | M95: 6255.948
B96: 275 | C96: 285 | D96: 586 | E96: 554 | F96: 590 | G96: 294 | H96: 0.8 | I96: 0.118 | J96: 1.6 | K96: 2.5 | L96: 2.9 | M96: 6645.082
B97: 270 | C97: 291 | D97: 583 | E97: 561 | F97: 589 | G97: 265 | H97: 0.8 | I97: 0.118 | J97: 1.6 | K97: 2.5 | L97: 2.9 | M97: 7487.656
B98: 296 | C98: 275 | D98: 556 | E98: 561 | F98: 465 | G98: 261 | H98: 0.8 | I98: 0.118 | J98: 1.6 | K98: 2.5 | L98: 2.9 | M98: 7044.148
B99: 257 | C99: 288 | D99: 589 | E99: 558 | F99: 344 | G99: 252 | H99: 0.8 | I99: 0.118 | J99: 1.6 | K99: 2.5 | L99: 2.9 | M99: 5632.616
B100: 257 | C100: 290 | D100: 575 | E100: 599 | F100: 517 | G100: 292 | H100: 0.8 | I100: 0.118 | J100: 1.6 | K100: 2.5 | L100: 2.9 | M100: 5983.746
B101: 273 | C101: 259 | D101: 567 | E101: 585 | F101: 572 | G101: 295 | H101: 0.8 | I101: 0.118 | J101: 1.6 | K101: 2.5 | L101: 2.9 | M101: 7023.564
B102: 283 | C102: 294 | D102: 597 | E102: 570 | F102: 364 | G102: 254 | H102: 0.8 | I102: 0.118 | J102: 1.6 | K102: 2.5 | L102: 2.9 | M102: 6758.272
B103: 274 | C103: 262 | D103: 591 | E103: 565 | F103: 597 | G103: 300 | H103: 0.8 | I103: 0.118 | J103: 1.6 | K103: 2.5 | L103: 2.9 | M103: 7283.342
B104: 250 | C104: 280 | D104: 599 | E104: 553 | F104: 402 | G104: 287 | H104: 0.8 | I104: 0.118 | J104: 1.6 | K104: 2.5 | L104: 2.9 | M104: 6327.722

Sheet Results
B1: Six regression runs with various parameters
B3: 1 | C3: Coefficients | D3: Standard Error | E3: t Stat | F3: P-value | G3: Lower 95% | H3: Upper 95% | I3: Lower 95.0% | J3: Upper 95.0%
B4: Intercept | C4: 3965.116192 | D4: 2502.512973 | E4: 1.584453801 | F4: 0.1164852269 | G4: -1004.378495 | H4: 8934.610879 | I4: -1004.378495 | J4: 8934.610879
B5: InvMinX | C5: -3.820008321 | D5: 4.38477785 | E5: -0.871197687 | F5: 0.3858896257 | G5: -12.52730793 | H5: 4.887291287 | I5: -12.52730793 | J5: 4.887291287
B6: InvMinY | C6: -2.353468078 | D6: 4.370897293 | E6: -0.5384404894 | F6: 0.5915594103 | G6: -11.03320365 | H6: 6.326267495 | I6: -11.03320365 | J6: 6.326267495 | V6: Decrease PurBatch
B7: CapcX | C7: 3.778540388 | D7: 2.12822052 | E7: 1.775445896 | F7: 0.07909556645 | G7: -0.4476836835 | H7: 8.004764459 | I7: -0.4476836835 | J7: 8.004764459
B8: CapcY | C8: 4.259538431 | D8: 2.169406209 | E8: 1.96345821 | F8: 0.05257992501 | G8: -0.04847225405 | H8: 8.567549116 | I8: -0.04847225405 | J8: 8.567549116
B9: PrBatch | C9: 1.31729531 | D9: 0.723653811 | E9: 1.820339076 | F9: 0.07192381129 | G9: -0.1197377078 | H9: 2.754328327 | I9: -0.1197377078 | J9: 2.754328327
B10: PurBatch | C10: -5.195317468 | D10: 2.293245553 | E10: -2.265486774 | F10: 0.02580339711 | G10: -9.749248541 | H10: -0.6413863946 | I10: -9.749248541 | J10: -0.6413863946 | V10: Increase PrBatch
B13: 2 | C13: Coefficients | D13: Standard Error | E13: t Stat | F13: P-value | G13: Lower 95% | H13: Upper 95% | I13: Lower 95.0% | J13: Upper 95.0%
B14: Intercept | C14: 6835.370183 | D14: 2225.993862 | E14: 3.070704866 | F14: 0.002799895083 | G14: 2414.987637 | H14: 11255.75273 | I14: 2414.987637 | J14: 11255.75273 | V14: Increase CapcY
B15: InvMinX | C15: -0.8272471227 | D15: 3.990230658 | E15: -0.2073181211 | F15: 0.8362147039 | G15: -8.751054218 | H15: 7.096559973 | I15: -8.751054218 | J15: 7.096559973
B16: InvMinY | C16: -7.384636714 | D16: 4.183526201 | E16: -1.765170423 | F16: 0.08081766949 | G16: -15.69229044 | H16: 0.9230170131 | I16: -15.69229044 | J16: 0.9230170131
B17: CapcX | C17: 3.229995422 | D17: 2.208162506 | E17: 1.462752589 | F17: 0.1469064772 | G17: -1.154977587 | H17: 7.614968431 | I17: -1.154977587 | J17: 7.614968431 | V17: Increase CapcX
B18: CapcY | C18: 0.138190355 | D18: 1.892713295 | E18: 0.07301177382 | F18: 0.9419535488 | G18: -3.620363052 | H18: 3.896743762 | I18: -3.620363052 | J18: 3.896743762
B19: PrBatch | C19: 2.28931283 | D19: 0.7663889455 | E19: 2.98714229 | F19: 0.003600271092 | G19: 0.7674163067 | H19: 3.811209353 | I19: 0.7674163067 | J19: 3.811209353
B20: PurBatch | C20: -5.70140103 | D20: 2.097426556 | E20: -2.718283991 | F20: 0.00782835852 | G20: -9.866474394 | H20: -1.536327666 | I20: -9.866474394 | J20: -1.536327666
V21: Decrease InvMinY
B24: 3 | C24: Coefficients | D24: Standard Error | E24: t Stat | F24: P-value | G24: Lower 95% | H24: Upper 95% | I24: Lower 95.0% | J24: Upper 95.0% | V24: OK
B25: Intercept | C25: 455.4783918 | D25: 2636.82773 | E25: 0.172737258 | F25: 0.8632333342 | G25: -4780.738777 | H25: 5691.69556 | I25: -4780.738777 | J25: 5691.69556
B26: InvMinX | C26: 2.745610933 | D26: 3.958728398 | E26: 0.693558804 | F26: 0.4896875764 | G26: -5.11563892 | H26: 10.60686079 | I26: -5.11563892 | J26: 10.60686079
B27: InvMinY | C27: -0.0780056125 | D27: 4.336383547 | E27: -0.01798863307 | F27: 0.985686458 | G27: -8.689203729 | H27: 8.533192504 | I27: -8.689203729 | J27: 8.533192504
B28: CapcX | C28: 3.816350055 | D28: 2.068513308 | E28: 1.844972445 | F28: 0.06822415387 | G28: -0.2913073292 | H28: 7.92400744 | I28: -0.2913073292 | J28: 7.92400744
B29: CapcY | C29: 4.74665649 | D29: 1.953293794 | E29: 2.430078109 | F29: 0.01701495594 | G29: 0.8678022199 | H29: 8.625510761 | I29: 0.8678022199 | J29: 8.625510761
B30: PrBatch | C30: 2.61810674 | D30: 0.6883873952 | E30: 3.803246192 | F30: 0.0002552562478 | G30: 1.251105833 | H30: 3.985107646 | I30: 1.251105833 | J30: 3.985107646
B31: PurBatch | C31: -4.334405578 | D31: 1.928827458 | E31: -2.247171233 | F31: 0.0269939238 | G31: -8.164674555 | H31: -0.5041366004 | I31: -8.164674555 | J31: -0.5041366004
A35: Pur < | B35: 4 | C35: Coefficients | D35: Standard Error | E35: t Stat | F35: P-value | G35: Lower 95% | H35: Upper 95% | I35: Lower 95.0% | J35: Upper 95.0%
A36: 2.5 | B36: Intercept | C36: 6998.134877 | D36: 2278.826843 | E36: 3.07093753 | F36: 0.002797917504 | G36: 2472.836502 | H36: 11523.43325 | I36: 2472.836502 | J36: 11523.43325
B37: InvMinX | C37: -5.320956767 | D37: 4.018191694 | E37: -1.324216755 | F37: 0.1886763826 | G37: -13.30028894 | H37: 2.658375403 | I37: -13.30028894 | J37: 2.658375403
B38: InvMinY | C38: -2.146648623 | D38: 4.375086151 | E38: -0.4906528807 | F38: 0.6248276991 | G38: -10.83470244 | H38: 6.541405191 | I38: -10.83470244 | J38: 6.541405191
B39: CapcX | C39: 1.5993755 | D39: 2.28344069 | E39: 0.7004234911 | F39: 0.4854114871 | G39: -2.935085059 | H39: 6.133836058 | I39: -2.935085059 | J39: 6.133836058
B40: CapcY | C40: 1.191430014 | D40: 2.154675974 | E40: 0.5529508974 | F40: 0.581623772 | G40: -3.087329346 | H40: 5.470189374 | I40: -3.087329346 | J40: 5.470189374
B41: PrBatch | C41: 1.324435392 | D41: 0.7277158644 | E41: 1.819989719 | F41: 0.07197745881 | G41: -0.1206640585 | H41: 2.769534842 | I41: -0.1206640585 | J41: 2.769534842
B42: PurBatch | C42: -3.371762227 | D42: 2.090639733 | E42: -1.612789699 | F42: 0.1101786506 | G42: -7.523358306 | H42: 0.7798338525 | I42: -7.523358306 | J42: 0.7798338525
A46: PurBatch < | B46: 5 | C46: Coefficients | D46: Standard Error | E46: t Stat | F46: P-value | G46: Lower 95% | H46: Upper 95% | I46: Lower 95.0% | J46: Upper 95.0%
A47: 250 | B47: Intercept | C47: 4140.879929 | D47: 2220.568606 | E47: 1.864783605 | F47: 0.06536532587 | G47: -268.7291349 | H47: 8550.488993 | I47: -268.7291349 | J47: 8550.488993
B48: InvMinX | C48: -2.41470896 | D48: 3.50869672 | E48: -0.6882068051 | F48: 0.4930356368 | G48: -9.382285111 | H48: 4.552867191 | I48: -9.382285111 | J48: 4.552867191
B49: InvMinY | C49: -4.829383531 | D49: 3.619292576 | E49: -1.334344607 | F49: 0.1853489631 | G49: -12.01658113 | H49: 2.357814065 | I49: -12.01658113 | J49: 2.357814065
B50: CapcX | C50: 4.061383319 | D50: 1.760548799 | E50: 2.306884831 | F50: 0.02328110546 | G50: 0.5652824009 | H50: 7.557484237 | I50: 0.5652824009 | J50: 7.557484237
B51: CapcY | C51: 4.743553207 | D51: 1.990053222 | E51: 2.38363133 | F51: 0.01917508085 | G51: 0.7917020004 | H51: 8.695404414 | I51: 0.7917020004 | J51: 8.695404414
B52: PrBatch | C52: 0.7822842869 | D52: 0.6093423057 | E52: 1.283817453 | F52: 0.2023952418 | G52: -0.4277487413 | H52: 1.992317315 | I52: -0.4277487413 | J52: 1.992317315
B53: PurBatch | C53: -4.681721104 | D53: 3.636836664 | E53: -1.287305848 | F53: 0.2011822653 | G53: -11.90375778 | H53: 2.540315573 | I53: -11.90375778 | J53: 2.540315573
A58: CapcX > | B58: 6 | C58: Coefficients | D58: Standard Error | E58: t Stat | F58: P-value | G58: Lower 95% | H58: Upper 95% | I58: Lower 95.0% | J58: Upper 95.0%
A59: 550 | B59: Intercept | C59: 6602.46056 | D59: 4177.089063 | E59: 1.580636769 | F59: 0.1173563668 | G59: -1692.410287 | H59: 14897.33141 | I59: -1692.410287 | J59: 14897.33141
B60: InvMinX | C60: 5.035108222 | D60: 4.22128819 | E60: 1.192789498 | F60: 0.2359861619 | G60: -3.34753333 | H60: 13.41774977 | I60: -3.34753333 | J60: 13.41774977
B61: InvMinY | C61: -7.219390509 | D61: 4.373285971 | E61: -1.650793147 | F61: 0.1021540375 | G61: -15.90386952 | H61: 1.465088504 | I61: -15.90386952 | J61: 1.465088504
B62: CapcX | C62: -4.748225099 | D62: 4.314202421 | E62: -1.100603225 | F62: 0.27390998 | G62: -13.3153759 | H62: 3.818925698 | I62: -13.3153759 | J62: 3.818925698
B63: CapcY | C63: 6.695041952 | D63: 4.012368138 | E63: 1.668601116 | F63: 0.09855991155 | G63: -1.272725791 | H63: 14.66280969 | I63: -1.272725791 | J63: 14.66280969
B64: PrBatch | C64: 0.4464883799 | D64: 0.7364820694 | E64: 0.606244739 | F64: 0.5458291992 | G64: -1.016019016 | H64: 1.908995776 | I64: -1.016019016 | J64: 1.908995776
B65: PurBatch | C65: -3.62600507 | D65: 4.335617511 | E65: -0.8363295564 | F65: 0.4051132888 | G65: -12.23568199 | H65: 4.98367185 | I65: -12.23568199 | J65: 4.98367185
